[Event "*** Titled Tuesday 3|2 Blitz"]
[Site "Chess.com"]
[Date "2016.10.04"]
[Round "2"]
[White "Rumpel-VK"]
[Black "LuckyTiger"]
[Result "0-1"]
[WhiteElo "2438"]
[BlackElo "2546"]
[TimeControl "180+2"]
[EndTime "11:26:07 PDT"]
[Termination "LuckyTiger won on time"]

1. e4 {[%clk 0:03:01.9]} 1... c5 {[%clk 0:02:59.8]} 2. g3 {[%clk 0:03:02.5]}
2... d5 {[%clk 0:02:59.6]} 3. exd5 {[%clk 0:03:03]} 3... Qxd5 {[%clk 0:03:01.5]}
4. Nf3 {[%clk 0:03:04.1]} 4... Bg4 {[%clk 0:03:03.2]} 5. Bg2 {[%clk 0:03:05.3]}
5... Qe6+ {[%clk 0:03:04.8]} 6. Kf1 {[%clk 0:03:05.9]} 6... Nc6 {[%clk
0:03:06.4]} 7. h3 {[%clk 0:03:05.4]} 7... Bh5 {[%clk 0:03:07.1]} 8. d3 {[%clk
0:03:06.5]} 8... Nf6 {[%clk 0:03:02.6]} 9. Be3 {[%clk 0:03:07.2]} 9... Qd6
{[%clk 0:02:46.1]} 10. Nbd2 {[%clk 0:03:04.8]} 10... e6 {[%clk 0:02:45.2]} 11.
Ne4 {[%clk 0:02:35.8]} 11... Nxe4 {[%clk 0:02:18.5]} 12. dxe4 {[%clk 0:02:36.6]}
12... Rd8 {[%clk 0:02:07.1]} 13. Qxd6 {[%clk 0:02:34.7]} 13... Bxd6 {[%clk
0:02:09]} 14. c3 {[%clk 0:02:30.7]} 14... f6 {[%clk 0:01:54.5]} 15. Ke2 {[%clk
0:02:20.5]} 15... Kd7 {[%clk 0:01:26]} 16. Rad1 {[%clk 0:02:13.8]} 16... Kc7
{[%clk 0:01:27.1]} 17. Rd2 {[%clk 0:02:10.5]} 17... Bf7 {[%clk 0:01:18.8]} 18.
Rhd1 {[%clk 0:02:08]} 18... e5 {[%clk 0:01:19.1]} 19. b3 {[%clk 0:02:06]} 19...
b6 {[%clk 0:01:17.1]} 20. Nh4 {[%clk 0:01:59.2]} 20... g6 {[%clk 0:01:17.2]} 21.
Nf3 {[%clk 0:01:40.3]} 21... a5 {[%clk 0:01:16.1]} 22. Ke1 {[%clk 0:01:29.1]}
22... Be7 {[%clk 0:01:03.1]} 23. Bf1 {[%clk 0:01:26.5]} 23... a4 {[%clk
0:00:51.2]} 24. bxa4 {[%clk 0:01:22.1]} 24... Na5 {[%clk 0:00:48.6]} 25. Bb5
{[%clk 0:01:19.5]} 25... Be6 {[%clk 0:00:45.9]} 26. Rxd8 {[%clk 0:00:58.2]}
26... Bxd8 {[%clk 0:00:44.9]} 27. Nd2 {[%clk 0:00:52.5]} 27... Be7 {[%clk
0:00:40.6]} 28. Nb3 {[%clk 0:00:49.4]} 28... Nc4 {[%clk 0:00:31.2]} 29. Bxc4
{[%clk 0:00:47.8]} 29... Bxc4 {[%clk 0:00:33.1]} 30. a5 {[%clk 0:00:49.3]} 30...
Be6 {[%clk 0:00:32]} 31. axb6+ {[%clk 0:00:48.3]} 31... Kc6 {[%clk 0:00:32]} 32.
b7 {[%clk 0:00:43.6]} 32... Rb8 {[%clk 0:00:30.5]} 33. Rb1 {[%clk 0:00:38.4]}
33... Bxh3 {[%clk 0:00:28.6]} 34. Na5+ {[%clk 0:00:35.2]} 34... Kc7 {[%clk
0:00:29.6]} 35. f3 {[%clk 0:00:25.8]} 35... Be6 {[%clk 0:00:24.2]} 36. a4 {[%clk
0:00:25.8]} 36... h5 {[%clk 0:00:23.6]} 37. Kf2 {[%clk 0:00:24.9]} 37... Bd7
{[%clk 0:00:17.4]} 38. Ra1 {[%clk 0:00:15.7]} 38... Be8 {[%clk 0:00:17.5]} 39.
Ra2 {[%clk 0:00:15.1]} 39... Bf7 {[%clk 0:00:18.1]} 40. Rb2 {[%clk 0:00:16]}
40... Be8 {[%clk 0:00:19.2]} 41. Ra2 {[%clk 0:00:17.3]} 41... Bd7 {[%clk
0:00:19.9]} 42. Ra1 {[%clk 0:00:17.6]} 42... Kb6 {[%clk 0:00:20.8]} 43. Nc4+
{[%clk 0:00:16.4]} 43... Ka6 {[%clk 0:00:22.1]} 44. a5 {[%clk 0:00:14.5]} 44...
Rxb7 {[%clk 0:00:20.1]} 45. Nb6 {[%clk 0:00:16]} 45... Be6 {[%clk 0:00:20.5]}
46. c4 {[%clk 0:00:15.2]} 46... Rb8 {[%clk 0:00:16.6]} 47. Ra2 {[%clk 0:00:14]}
47... Rd8 {[%clk 0:00:17.2]} 48. Ra1 {[%clk 0:00:13.9]} 48... Rd3 {[%clk
0:00:17.8]} 49. Na4 {[%clk 0:00:14.5]} 49... Bxc4 {[%clk 0:00:15.1]} 50. Bxc5
{[%clk 0:00:13.5]} 50... Bd8 {[%clk 0:00:14.9]} 51. Bb6 {[%clk 0:00:13.8]} 51...
Bxb6+ {[%clk 0:00:14]} 52. axb6 {[%clk 0:00:14.7]} 52... Rd2+ {[%clk 0:00:13.9]}
53. Ke1 {[%clk 0:00:14.7]} 53... Re2+ {[%clk 0:00:14.9]} 54. Kd1 {[%clk
0:00:15.9]} 54... Rh2 {[%clk 0:00:16]} 55. Nb2+ {[%clk 0:00:14.8]} 55... Kxb6
{[%clk 0:00:15.8]} 56. Nxc4+ {[%clk 0:00:15.1]} 56... Kc5 {[%clk 0:00:17.5]} 57.
Ra4 {[%clk 0:00:14.8]} 57... Kd4 {[%clk 0:00:17.8]} 58. Nd2+ {[%clk 0:00:13.8]}
58... Kd3 {[%clk 0:00:18.9]} 59. Ra3+ {[%clk 0:00:14.6]} 59... Kd4 {[%clk
0:00:20.4]} 60. Kc2 {[%clk 0:00:15]} 60... Rg2 {[%clk 0:00:19.9]} 61. Rd3+
{[%clk 0:00:15.2]} 61... Kc5 {[%clk 0:00:20.9]} 62. Rd5+ {[%clk 0:00:16.1]}
62... Kc6 {[%clk 0:00:21.4]} 63. Rd8 {[%clk 0:00:17.1]} 63... f5 {[%clk
0:00:18.1]} 64. Rf8 {[%clk 0:00:12.7]} 64... fxe4 {[%clk 0:00:13.7]} 65. Rf6+
{[%clk 0:00:12.7]} 65... Kc5 {[%clk 0:00:12.9]} 66. fxe4 {[%clk 0:00:12.9]}
66... Rxg3 {[%clk 0:00:14.2]} 67. Kd1 {[%clk 0:00:13.5]} 67... Kd4 {[%clk
0:00:14.6]} 68. Ke2 {[%clk 0:00:12.8]} 68... Rg4 {[%clk 0:00:13.9]} 69. Rc6
{[%clk 0:00:09.4]} 69... Rg2+ {[%clk 0:00:13.6]} 70. Kd1 {[%clk 0:00:09]} 70...
Kd3 {[%clk 0:00:12]} 71. Rd6+ {[%clk 0:00:10]} 71... Ke3 {[%clk 0:00:12.5]} 72.
Ke1 {[%clk 0:00:08.1]} 72... h4 {[%clk 0:00:12.5]} 73. Rd5 {[%clk 0:00:08]}
73... h3 {[%clk 0:00:11]} 74. Nf1+ {[%clk 0:00:06.8]} 74... Kxe4 {[%clk
0:00:11.2]} 75. Rd6 {[%clk 0:00:08.3]} 75... Kf4 {[%clk 0:00:08.5]} 76. Rf6+
{[%clk 0:00:08.5]} 76... Kg5 {[%clk 0:00:09.7]} 77. Rf8 {[%clk 0:00:09.6]} 77...
Rg4 {[%clk 0:00:09.1]} 78. Rh8 {[%clk 0:00:10.2]} 78... Rh4 {[%clk 0:00:07.9]}
79. Rxh4 {[%clk 0:00:11.4]} 79... Kxh4 {[%clk 0:00:09.8]} 80. Kf2 {[%clk
0:00:12.6]} 80... g5 {[%clk 0:00:10.8]} 81. Ng3 {[%clk 0:00:13.2]} 81... Kg4
{[%clk 0:00:11.7]} 82. Ne4 {[%clk 0:00:13.3]} 82... Kf4 {[%clk 0:00:12.7]} 83.
Ng3 {[%clk 0:00:14.8]} 83... e4 {[%clk 0:00:13.9]} 84. Ne2+ {[%clk 0:00:15.1]}
84... Kg4 {[%clk 0:00:15.3]} 85. Nd4 {[%clk 0:00:08]} 85... e3+ {[%clk
0:00:14.3]} 86. Kg1 {[%clk 0:00:04.9]} 86... Kg3 {[%clk 0:00:12.8]} 87. Ne2+
{[%clk 0:00:05.6]} 87... Kf3 {[%clk 0:00:13.7]} 88. Nd4+ {[%clk 0:00:07.1]}
88... Ke4 {[%clk 0:00:15.2]} 89. Ne6 {[%clk 0:00:08]} 89... g4 {[%clk
0:00:12.4]} 90. Ng5+ {[%clk 0:00:08.2]} 90... Kd3 {[%clk 0:00:12.5]} 91. Ne6
{[%clk 0:00:07.9]} 91... e2 {[%clk 0:00:13.6]} 92. Nf4+ {[%clk 0:00:05.2]} 92...
Ke3 {[%clk 0:00:14.1]} 93. Nd5+ {[%clk 0:00:04.5]} 93... Kd2 {[%clk 0:00:15.2]}
94. Kh2 {[%clk 0:00:03.8]} 94... e1=Q {[%clk 0:00:15.3]} 95. Nc3 {[%clk
0:00:03.9]} 95... Qf2+ {[%clk 0:00:16.1]} 0-1

[Event "*** Titled Tuesday 3|2 Blitz"]
[Site "Chess.com"]
[Date "2016.10.04"]
[Round "2"]
[White "VovAn1991"]
[Black "pastouche06"]
[Result "0-1"]
[WhiteElo "2446"]
[BlackElo "2343"]
[TimeControl "180+2"]
[EndTime "11:26:19 PDT"]
[Termination "pastouche06 won on time"]

1. e4 {[%clk 0:03:02]} 1... c6 {[%clk 0:02:59.9]} 2. d4 {[%clk 0:03:02.7]} 2...
d5 {[%clk 0:03:01.1]} 3. Nc3 {[%clk 0:03:03.3]} 3... dxe4 {[%clk 0:02:54.9]} 4.
Nxe4 {[%clk 0:03:05.2]} 4... Bf5 {[%clk 0:02:55.8]} 5. Ng3 {[%clk 0:03:05.9]}
5... Bg6 {[%clk 0:02:56.7]} 6. Nh3 {[%clk 0:03:06.4]} 6... e6 {[%clk 0:02:56.9]}
7. Nf4 {[%clk 0:03:06]} 7... Qh4 {[%clk 0:02:57.4]} 8. Nge2 {[%clk 0:02:59.3]}
8... Bd6 {[%clk 0:02:52.4]} 9. g3 {[%clk 0:02:59.5]} 9... Qe7 {[%clk 0:02:50]}
10. Bg2 {[%clk 0:03:00.4]} 10... Nf6 {[%clk 0:02:40.4]} 11. Nxg6 {[%clk
0:02:56.9]} 11... hxg6 {[%clk 0:02:40.6]} 12. Bg5 {[%clk 0:02:58.4]} 12... Qc7
{[%clk 0:02:32.8]} 13. c4 {[%clk 0:02:49.6]} 13... Bb4+ {[%clk 0:02:27.9]} 14.
Kf1 {[%clk 0:02:44.3]} 14... Be7 {[%clk 0:02:24.3]} 15. h4 {[%clk 0:02:41.1]}
15... Nbd7 {[%clk 0:02:21.7]} 16. Qa4 {[%clk 0:02:37.1]} 16... O-O {[%clk
0:02:03.7]} 17. Rd1 {[%clk 0:01:21.7]} 17... Rfe8 {[%clk 0:01:57.1]} 18. Bf3
{[%clk 0:01:00.8]} 18... e5 {[%clk 0:01:30.6]} 19. d5 {[%clk 0:01:00.6]} 19...
Nc5 {[%clk 0:01:29.6]} 20. Qc2 {[%clk 0:01:00.5]} 20... e4 {[%clk 0:01:13.8]}
21. Bg2 {[%clk 0:00:57.5]} 21... a5 {[%clk 0:01:10.3]} 22. Nf4 {[%clk
0:00:53.3]} 22... Bd6 {[%clk 0:01:01.1]} 23. h5 {[%clk 0:00:49.8]} 23... Nh7
{[%clk 0:00:55.4]} 24. Nh3 {[%clk 0:00:38.2]} 24... gxh5 {[%clk 0:00:45.6]} 25.
Be3 {[%clk 0:00:37.6]} 25... Nf6 {[%clk 0:00:41.9]} 26. Nf4 {[%clk 0:00:32.5]}
26... g6 {[%clk 0:00:40.3]} 27. Qc3 {[%clk 0:00:30.9]} 27... Be5 {[%clk
0:00:39]} 28. Bd4 {[%clk 0:00:32.1]} 28... Ncd7 {[%clk 0:00:36.8]} 29. Bh3
{[%clk 0:00:28.3]} 29... c5 {[%clk 0:00:36.1]} 30. Bxe5 {[%clk 0:00:27.7]} 30...
Qxe5 {[%clk 0:00:38]} 31. Qc2 {[%clk 0:00:14]} 31... e3 {[%clk 0:00:21.4]} 32.
Re1 {[%clk 0:00:14.2]} 32... Qd4 {[%clk 0:00:20.4]} 33. f3 {[%clk 0:00:15.5]}
33... Ne5 {[%clk 0:00:19.5]} 34. b3 {[%clk 0:00:14.6]} 34... Nxf3 {[%clk
0:00:19.5]} 35. Re2 {[%clk 0:00:15.3]} 35... Nd2+ {[%clk 0:00:19.7]} 36. Kg2
{[%clk 0:00:15.6]} 36... g5 {[%clk 0:00:16.7]} 37. Nxh5 {[%clk 0:00:04.9]} 37...
Nxh5 {[%clk 0:00:17.2]} 38. Bf5 {[%clk 0:00:06.5]} 38... Nf6 {[%clk 0:00:17.1]}
39. Kg1 {[%clk 0:00:08]} 39... Nf3+ {[%clk 0:00:17.1]} 40. Kg2 {[%clk
0:00:09.5]} 40... Ne5 {[%clk 0:00:18.1]} 41. Rd1 {[%clk 0:00:08.9]} 41... Nd3
{[%clk 0:00:11.6]} 42. Rxd3 {[%clk 0:00:09.2]} 42... Qe5 {[%clk 0:00:13.1]} 43.
Rdxe3 {[%clk 0:00:08.1]} 43... Qxe3 {[%clk 0:00:14.1]} 44. Rxe3 {[%clk 0:00:10]}
44... Rxe3 {[%clk 0:00:15.4]} 45. d6 {[%clk 0:00:07.3]} 45... Rae8 {[%clk
0:00:15.2]} 46. Kf2 {[%clk 0:00:07.5]} 46... R3e5 {[%clk 0:00:09.9]} 47. g4
{[%clk 0:00:08.6]} 47... Kg7 {[%clk 0:00:10.2]} 48. Qd2 {[%clk 0:00:08.5]} 48...
Re2+ {[%clk 0:00:07]} 49. Qxe2 {[%clk 0:00:09.2]} 49... Rxe2+ {[%clk 0:00:08.9]}
50. Kxe2 {[%clk 0:00:11.1]} 50... Kf8 {[%clk 0:00:10.8]} 51. Kd3 {[%clk
0:00:09.2]} 51... Ke8 {[%clk 0:00:11.9]} 52. a3 {[%clk 0:00:10.6]} 52... b6
{[%clk 0:00:13.2]} 53. Kc3 {[%clk 0:00:09.8]} 53... Kd8 {[%clk 0:00:13.3]} 54.
b4 {[%clk 0:00:11.1]} 54... axb4+ {[%clk 0:00:13.9]} 55. axb4 {[%clk 0:00:13]}
55... Ne8 {[%clk 0:00:14.7]} 56. d7 {[%clk 0:00:13.3]} 56... Nf6 {[%clk
0:00:15.8]} 57. bxc5 {[%clk 0:00:10.4]} 57... bxc5 {[%clk 0:00:17.7]} 58. Kd3
{[%clk 0:00:12.3]} 58... Ke7 {[%clk 0:00:16.2]} 59. Ke3 {[%clk 0:00:13.2]} 59...
Nxd7 {[%clk 0:00:15.8]} 60. Ke4 {[%clk 0:00:14.3]} 60... Nb6 {[%clk 0:00:14.9]}
61. Kd3 {[%clk 0:00:08.6]} 61... Kd6 {[%clk 0:00:15.6]} 62. Bh7 {[%clk
0:00:02.1]} 62... Ke5 {[%clk 0:00:16.6]} 63. Bg8 {[%clk 0:00:03.5]} 63... f6
{[%clk 0:00:17.8]} 64. Ke3 {[%clk 0:00:05.2]} 64... Nc8 {[%clk 0:00:18.8]} 65.
Bd5 {[%clk 0:00:05.7]} 65... Nd6 {[%clk 0:00:18.9]} 66. Bg8 {[%clk 0:00:06.1]}
66... Ne8 {[%clk 0:00:12.9]} 67. Bf7 {[%clk 0:00:06.1]} 67... Nd6 {[%clk
0:00:14]} 68. Bg8 {[%clk 0:00:07.6]} 68... Nb7 {[%clk 0:00:08.8]} 69. Bd5 {[%clk
0:00:07.8]} 69... Na5 {[%clk 0:00:10.2]} 70. Bg8 {[%clk 0:00:07.8]} 70... Nb3
{[%clk 0:00:11.7]} 71. Bd5 {[%clk 0:00:08.7]} 71... Nd4 {[%clk 0:00:12.2]} 72.
Bg8 {[%clk 0:00:09.8]} 72... Nc2+ {[%clk 0:00:12.7]} 73. Kd3 {[%clk 0:00:11.1]}
73... Nb4+ {[%clk 0:00:12.8]} 74. Ke3 {[%clk 0:00:12.3]} 74... Nc2+ {[%clk
0:00:14]} 75. Kd3 {[%clk 0:00:13.5]} 75... Nd4 {[%clk 0:00:15.9]} 76. Ke3 {[%clk
0:00:14.8]} 76... f5 {[%clk 0:00:17.4]} 77. gxf5 {[%clk 0:00:15.9]} 77... Kxf5
{[%clk 0:00:15.6]} 78. Bh7+ {[%clk 0:00:14.8]} 78... Ke5 {[%clk 0:00:07.3]} 79.
Bg8 {[%clk 0:00:15.8]} 79... Kf5 {[%clk 0:00:05.3]} 80. Bh7+ {[%clk 0:00:15.2]}
80... Kg4 {[%clk 0:00:06.7]} 81. Ke4 {[%clk 0:00:16]} 81... Kh3 {[%clk
0:00:06.2]} 82. Kd5 {[%clk 0:00:17.3]} 82... g4 {[%clk 0:00:05.8]} 83. Kxc5
{[%clk 0:00:18.4]} 83... Ne6+ {[%clk 0:00:06.9]} 84. Kd5 {[%clk 0:00:15.8]}
84... g3 {[%clk 0:00:04.7]} 85. Kxe6 {[%clk 0:00:08.7]} 85... g2 {[%clk
0:00:04.5]} 86. c5 {[%clk 0:00:10.2]} 86... g1=Q {[%clk 0:00:05.5]} 87. Bf5+
{[%clk 0:00:11.7]} 87... Kh4 {[%clk 0:00:06]} 88. c6 {[%clk 0:00:13.6]} 88...
Qg8+ {[%clk 0:00:05.2]} 89. Kd6 {[%clk 0:00:14.2]} 89... Qd8+ {[%clk 0:00:03.8]}
90. Bd7 {[%clk 0:00:15.3]} 90... Qf6+ {[%clk 0:00:04.9]} 91. Kc7 {[%clk
0:00:16.5]} 91... Qe5+ {[%clk 0:00:05.9]} 92. Kb7 {[%clk 0:00:17.8]} 92... Qb5+
{[%clk 0:00:06.3]} 93. Kc8 {[%clk 0:00:18.9]} 93... Qa6+ {[%clk 0:00:07.4]} 94.
Kd8 {[%clk 0:00:20.2]} 94... Qa8+ {[%clk 0:00:08.4]} 95. Bc8 {[%clk 0:00:19.6]}
95... Qxc6 {[%clk 0:00:06.6]} 0-1

[Event "*** Titled Tuesday 3|2 Blitz"]
[Site "Chess.com"]
[Date "2016.10.04"]
[Round "2"]
[White "LawrenceTrent"]
[Black "MateusViageiro"]
[Result "1/2-1/2"]
[WhiteElo "2519"]
[BlackElo "2317"]
[TimeControl "180+2"]
[EndTime "11:26:29 PDT"]
[Termination "Game drawn by repetition"]

1. e4 {[%clk 0:03:00]} 1... c5 {[%clk 0:03:00.5]} 2. Nf3 {[%clk 0:03:00.8]} 2...
d6 {[%clk 0:03:01.7]} 3. d4 {[%clk 0:03:01.4]} 3... cxd4 {[%clk 0:03:02.6]} 4.
Nxd4 {[%clk 0:03:02.9]} 4... Nf6 {[%clk 0:03:04.1]} 5. Nc3 {[%clk 0:03:04.2]}
5... a6 {[%clk 0:03:05.3]} 6. Bg5 {[%clk 0:03:04.6]} 6... e6 {[%clk 0:03:06.2]}
7. f4 {[%clk 0:03:05.5]} 7... Be7 {[%clk 0:03:06.8]} 8. Qe2 {[%clk 0:03:04.6]}
8... h6 {[%clk 0:03:01.5]} 9. Bxf6 {[%clk 0:03:04]} 9... Bxf6 {[%clk 0:03:01.4]}
10. O-O-O {[%clk 0:03:05.9]} 10... Qc7 {[%clk 0:02:51.4]} 11. g4 {[%clk
0:02:58.9]} 11... Be7 {[%clk 0:02:50.6]} 12. h4 {[%clk 0:02:56.9]} 12... Bd7
{[%clk 0:02:51.5]} 13. Bg2 {[%clk 0:02:57.1]} 13... Nc6 {[%clk 0:02:52.4]} 14.
Nb3 {[%clk 0:02:57.9]} 14... Rc8 {[%clk 0:02:51]} 15. Kb1 {[%clk 0:02:57]} 15...
b5 {[%clk 0:02:50.2]} 16. Nd5 {[%clk 0:02:45]} 16... exd5 {[%clk 0:02:47.7]} 17.
exd5 {[%clk 0:02:45.6]} 17... Ne5 {[%clk 0:02:36.7]} 18. fxe5 {[%clk 0:02:44]}
18... dxe5 {[%clk 0:02:37.9]} 19. d6 {[%clk 0:02:34.4]} 19... Bxd6 {[%clk
0:02:34.8]} 20. Bd5 {[%clk 0:02:28.8]} 20... Bc6 {[%clk 0:02:22.9]} 21. Bxc6+
{[%clk 0:02:22.6]} 21... Qxc6 {[%clk 0:02:23.8]} 22. Nd4 {[%clk 0:02:17.4]}
22... Qc4 {[%clk 0:02:06.2]} 23. Qe1 {[%clk 0:01:39.3]} 23... O-O {[%clk
0:02:01.1]} 24. Nf5 {[%clk 0:01:40]} 24... Qxc2+ {[%clk 0:01:57.4]} 25. Ka1
{[%clk 0:01:40.7]} 25... Bc5 {[%clk 0:01:38.3]} 26. Qxe5 {[%clk 0:01:38.3]}
26... f6 {[%clk 0:01:25]} 27. Qe6+ {[%clk 0:01:35.5]} 27... Kh8 {[%clk
0:01:19.6]} 28. Qd7 {[%clk 0:01:15.7]} 28... Rg8 {[%clk 0:01:19]} 29. Rc1 {[%clk
0:01:08.9]} 29... Qe2 {[%clk 0:00:50.1]} 30. g5 {[%clk 0:01:01.6]} 30... Rcd8
{[%clk 0:00:42.7]} 31. Qc7 {[%clk 0:01:00.2]} 31... Ba3 {[%clk 0:00:31.3]} 32.
bxa3 {[%clk 0:00:33]} 32... Rd2 {[%clk 0:00:30]} 33. Qc3 {[%clk 0:00:32.7]}
33... Rxa2+ {[%clk 0:00:30]} 34. Kb1 {[%clk 0:00:33.3]} 34... Rd2 {[%clk
0:00:27.8]} 35. Rhe1 {[%clk 0:00:28]} 35... Qf2 {[%clk 0:00:27.6]} 36. Rf1
{[%clk 0:00:28]} 36... Qe2 {[%clk 0:00:28.2]} 37. gxh6 {[%clk 0:00:26.7]} 37...
Rd3 {[%clk 0:00:25.5]} 38. hxg7+ {[%clk 0:00:25.3]} 38... Kh7 {[%clk 0:00:25.8]}
39. Qc2 {[%clk 0:00:25.2]} 39... Qe4 {[%clk 0:00:23.3]} 40. Rfe1 {[%clk
0:00:15.9]} 40... Qxf5 {[%clk 0:00:23.9]} 41. Re3 {[%clk 0:00:14.6]} 41... Rgd8
{[%clk 0:00:17.2]} 42. g8=Q+ {[%clk 0:00:15.9]} 42... Kxg8 {[%clk 0:00:17.8]}
43. Rg1+ {[%clk 0:00:16.6]} 43... Kh7 {[%clk 0:00:18.4]} 44. Re7+ {[%clk
0:00:16.7]} 44... Kh6 {[%clk 0:00:19.6]} 45. Ka1 {[%clk 0:00:15.2]} 45... Rd1+
{[%clk 0:00:19.2]} 46. Qxd1 {[%clk 0:00:16.3]} 46... Rxd1+ {[%clk 0:00:20]} 47.
Rxd1 {[%clk 0:00:17.8]} 47... Qf4 {[%clk 0:00:21.2]} 48. Red7 {[%clk 0:00:16.7]}
48... Qxh4 {[%clk 0:00:21.6]} 49. R7d4 {[%clk 0:00:16.8]} 49... Qg5 {[%clk
0:00:22.1]} 50. Rd6 {[%clk 0:00:17.3]} 50... Qe5+ {[%clk 0:00:23.2]} 51. Kb1
{[%clk 0:00:18.7]} 51... Qe4+ {[%clk 0:00:24.6]} 52. R1d3 {[%clk 0:00:19.7]}
52... Kg5 {[%clk 0:00:24.9]} 53. Kb2 {[%clk 0:00:20.8]} 53... f5 {[%clk
0:00:26]} 54. R6d4 {[%clk 0:00:20.4]} 54... Qe5 {[%clk 0:00:27.3]} 55. Kc2
{[%clk 0:00:21.4]} 55... a5 {[%clk 0:00:28.4]} 56. Rd5 {[%clk 0:00:22.4]} 56...
Qe2+ {[%clk 0:00:29]} 57. Kc1 {[%clk 0:00:22.2]} 57... b4 {[%clk 0:00:29.4]} 58.
a4 {[%clk 0:00:20.3]} 58... Qe1+ {[%clk 0:00:29.6]} 59. Kb2 {[%clk 0:00:20.2]}
59... Qe2+ {[%clk 0:00:30.8]} 60. Kb3 {[%clk 0:00:21.4]} 60... Qe1 {[%clk
0:00:30.7]} 61. Rxa5 {[%clk 0:00:20.6]} 61... Qb1+ {[%clk 0:00:30.8]} 62. Kc4
{[%clk 0:00:21.8]} 62... Qc2+ {[%clk 0:00:31.8]} 63. Kd4 {[%clk 0:00:23]} 63...
b3 {[%clk 0:00:33.1]} 64. Rb5 {[%clk 0:00:23.9]} 64... b2 {[%clk 0:00:33.7]} 65.
Rdb3 {[%clk 0:00:25.2]} 65... Qd2+ {[%clk 0:00:34.8]} 66. Kc4 {[%clk 0:00:26.2]}
66... Qf4+ {[%clk 0:00:35.3]} 67. Kc3 {[%clk 0:00:24.3]} 67... Qxa4 {[%clk
0:00:34.6]} 68. Kxb2 {[%clk 0:00:25.6]} 68... Qd4+ {[%clk 0:00:35.4]} 69. Kc2
{[%clk 0:00:26.5]} 69... Qe4+ {[%clk 0:00:36.3]} 70. Kd2 {[%clk 0:00:27.7]}
70... Qd4+ {[%clk 0:00:37.4]} 71. Ke2 {[%clk 0:00:29]} 71... Qe4+ {[%clk
0:00:38.5]} 72. Kf2 {[%clk 0:00:30.2]} 72... Qc2+ {[%clk 0:00:39.4]} 73. Kg1
{[%clk 0:00:31.2]} 73... Qd1+ {[%clk 0:00:40.5]} 74. Kg2 {[%clk 0:00:32.3]}
74... Qe2+ {[%clk 0:00:41.4]} 75. Kg1 {[%clk 0:00:33.6]} 75... Qe1+ {[%clk
0:00:42.6]} 76. Kh2 {[%clk 0:00:34.9]} 76... Qh4+ {[%clk 0:00:42.5]} 77. Kg2
{[%clk 0:00:35]} 77... Qe4+ {[%clk 0:00:43.4]} 78. Kf2 {[%clk 0:00:34.1]} 78...
Qc2+ {[%clk 0:00:44.2]} 79. Ke3 {[%clk 0:00:35.4]} 79... Qe4+ {[%clk 0:00:44.1]}
80. Kd2 {[%clk 0:00:36.6]} 80... Qg2+ {[%clk 0:00:43.4]} 81. Kc3 {[%clk
0:00:37.6]} 81... Kg4 {[%clk 0:00:42.2]} 82. Kd4 {[%clk 0:00:36.6]} 82... Qe4+
{[%clk 0:00:42.5]} 83. Kc5 {[%clk 0:00:37.8]} 83... f4 {[%clk 0:00:43.5]} 84.
Rb8 {[%clk 0:00:36.3]} 84... Qe7+ {[%clk 0:00:43.6]} 85. Kd5 {[%clk 0:00:37.1]}
85... Qf7+ {[%clk 0:00:44.2]} 86. Ke5 {[%clk 0:00:38]} 86... f3 {[%clk
0:00:44.8]} 87. R8b7 {[%clk 0:00:32]} 87... Qf5+ {[%clk 0:00:44.2]} 88. Kd6
{[%clk 0:00:33.1]} 88... Qf6+ {[%clk 0:00:42.8]} 89. Kd5 {[%clk 0:00:33.6]}
89... f2 {[%clk 0:00:43.9]} 90. R7b4+ {[%clk 0:00:30.7]} 90... Kg5 {[%clk
0:00:43.2]} 91. Rg3+ {[%clk 0:00:31.2]} 91... Kh5 {[%clk 0:00:42.2]} 92. Rh3+
{[%clk 0:00:30.9]} 92... Kg5 {[%clk 0:00:35.2]} 93. Rg3+ {[%clk 0:00:31.5]}
93... Kh5 {[%clk 0:00:36.4]} 94. Rh3+ {[%clk 0:00:32.5]} 94... Kg5 {[%clk
0:00:30.2]} 95. Rg3+ {[%clk 0:00:31.6]} 95... Kh5 {[%clk 0:00:23.2]} 96. Rh3+
{[%clk 0:00:25.2]} 96... Kg5 {[%clk 0:00:23.6]} 1/2-1/2